fUST/lending_fUST_20250120
["ID","MTS","AMOUNT","RATE_DAILY","PERIOD"]
[349637382,1737342089758,500.0,0.000195,21]
[349637383,1737342090581,500.0,0.000195,21]
[349637384,1737342091404,500.0,0.000195,21]
[349637385,1737342092336,500.0,0.000195,21]
[349637386,1737342112039,341.76,0.000195,21]
[349637389,1737342368282,164.710169,0.00013973,2]
[349637390,1737342463222,309.19329977,0.000189,2]
[349637434,1737342632121,-179.088542,0.00020258,2]
[349637436,1737342632131,-506.53511949,0.00020414,2]
[349637438,1737342632141,-300.0,0.00020672,2]
[349637440,1737342632150,-3152.87765721,0.00020673,2]
[349637442,1737342632162,-655.77759031,0.00020673,2]
[349637446,1737342632187,-342.42666817,0.00020673,2]
[349637448,1737342632199,-566.9068282,0.00020673,2]
[349637450,1737342632213,-499.563478,0.00020673,2]
[349637452,1737342632225,-15148.60270176,0.00020673,2]
[349637455,1737342632236,-1123.70777648,0.00020673,2]
[349637457,1737342632248,-1893.56,0.00020673,2]
[349637459,1737342632264,-1516.57729987,0.00020673,2]
[349637461,1737342632273,-179.088542,0.00020789,2]
[349637463,1737342632283,-815.51968613,0.00020895,2]
[349637994,1737342637935,-1851.48031387,0.00020895,2]
[349637996,1737342637945,-151.2269015,0.00021,5]
[349637998,1737342637954,-151.30183706,0.0002147,2]
[349638000,1737342637964,-158.053569,0.00021608,2]
[349638014,1737342638154,-158.053569,0.00021729,2]
[349638015,1737342638164,-2457.86498246,0.00021783,2]
[349638016,1737342638176,-1812.33113915,0.00021783,2]
[349638017,1737342638189,-5208.29559527,0.00021783,2]
[349638018,1737342638213,-307.02739626,0.00021783,2]
[349638019,1737342638223,-11325.9770705,0.00021817,3]
[349638020,1737342638236,-10147.26431489,0.00021817,3]
[349638022,1737342638248,-9839.44578474,0.00021817,3]
[349638023,1737342638260,-2524.80729321,0.00021817,3]
[349638025,1737342638270,-715.51298217,0.00021817,2]
[349638027,1737342638280,-158.053569,0.0002185,2]
[349638029,1737342638290,-175.153,0.00021916,2]
[349638031,1737342638299,-500.0,0.00021916,2]
[349638033,1737342638308,-465.42390244,0.00021916,2]
[349638035,1737342638317,-500.0,0.00021916,2]
[349638037,1737342638327,-500.0,0.00021916,2]
[349638039,1737342638336,-512.94651264,0.00021916,2]
[349638041,1737342638346,-170.42073059,0.00021916,2]
[349638044,1737342638365,-277.33501452,0.00021916,2]
[349638046,1737342638378,-500.0,0.00021916,2]
[349638048,1737342638391,-500.0,0.00021916,2]
[349638050,1737342638403,-500.0,0.00021916,2]
[349638052,1737342638413,-500.0,0.00021916,2]
[349638055,1737342638423,-500.0,0.00021916,2]
[349638057,1737342638434,-152.13943735,0.00021916,2]
[349638058,1737342638444,-161.13251113,0.00021916,2]
[349638061,1737342638455,-500.0,0.00021916,2]
[349638063,1737342638466,-500.0,0.00021916,2]
[349638065,1737342638477,-500.0,0.00021916,2]
[349638067,1737342638487,-500.0,0.00021916,2]
[349638069,1737342638498,-500.0,0.00021916,2]
[349638071,1737342638509,-500.0,0.00021916,2]
[349638073,1737342638519,-500.0,0.00021916,2]
[349638075,1737342638530,-500.0,0.00021916,2]
[349638077,1737342638541,-500.0,0.00021916,2]
[349638079,1737342638552,-500.0,0.00021916,2]
[349638082,1737342638562,-500.0,0.00021916,2]
[349638084,1737342638573,-500.0,0.00021916,2]
[349638086,1737342638584,-500.0,0.00021916,2]
[349638088,1737342638594,-500.0,0.00021916,2]
[349638090,1737342638605,-500.0,0.00021916,2]
[349638092,1737342638615,-189.54934839,0.00021916,2]
[349638094,1737342638625,-500.0,0.00021916,2]
[349638096,1737342638636,-500.0,0.00021916,2]
[349638097,1737342638646,-500.0,0.00021916,2]
[349638099,1737342638657,-500.0,0.00021916,2]
[349638102,1737342638667,-500.0,0.00021916,2]
[349638104,1737342638678,-500.0,0.00021916,2]
[349638106,1737342638688,-500.0,0.00021916,2]
[349638108,1737342638699,-500.0,0.00021916,2]
[349638110,1737342638710,-500.0,0.00021916,2]
[349638112,1737342638721,-500.0,0.00021916,2]
[349638114,1737342638732,-500.0,0.00021916,2]
[349638116,1737342638742,-500.0,0.00021916,2]
[349638118,1737342638752,-500.0,0.00021916,2]
[349638120,1737342638762,-500.0,0.00021916,2]
[349638122,1737342638772,-639.21121773,0.00021916,2]
[349638124,1737342638782,-500.0,0.00021916,2]
[349638126,1737342638792,-500.0,0.00021916,2]
[349638128,1737342638803,-235.40376593,0.00021916,2]
[349638130,1737342638813,-500.0,0.00021916,2]
[349638132,1737342638823,-500.0,0.00021916,2]
[349638134,1737342638833,-500.0,0.00021916,2]
[349638136,1737342638843,-161.38403573,0.00021916,2]
[349638138,1737342638853,-500.0,0.00021916,2]
[349638140,1737342638862,-500.0,0.00021916,2]
[349638142,1737342638872,-500.0,0.00021916,2]
[349638144,1737342638882,-500.0,0.00021916,2]
[349638146,1737342638892,-500.0,0.00021916,2]
[349638148,1737342638902,-500.0,0.00021916,2]
[349638151,1737342638913,-500.0,0.00021916,2]
[349638153,1737342638923,-500.0,0.00021916,2]
[349638155,1737342638932,-500.0,0.00021916,2]
[349638157,1737342638942,-500.0,0.00021916,2]
[349638159,1737342638952,-500.0,0.00021916,2]
[349638161,1737342638964,-500.0,0.00021916,2]
[349638163,1737342638973,-500.0,0.00021916,2]
[349638165,1737342638983,-500.0,0.00021916,2]
[349638167,1737342638993,-500.0,0.00021916,2]
[349638169,1737342639003,-500.0,0.00021916,2]
[349638171,1737342639013,-500.0,0.00021916,2]
[349638173,1737342639022,-500.0,0.00021916,2]
[349638175,1737342639032,-500.0,0.00021916,2]
[349638177,1737342639042,-260.11897638,0.00021916,2]
[349638179,1737342639051,-500.0,0.00021916,2]
[349638181,1737342639061,-500.0,0.00021916,2]
[349638183,1737342639071,-500.0,0.00021916,2]
[349638185,1737342639081,-500.0,0.00021916,2]
[349638187,1737342639092,-500.0,0.00021916,2]
[349638189,1737342639102,-500.0,0.00021916,2]
[349638191,1737342639112,-500.0,0.00021916,2]
[349638193,1737342639122,-500.0,0.00021916,2]
[349638195,1737342639131,-500.0,0.00021916,2]
[349638197,1737342639141,-500.0,0.00021916,2]
[349638199,1737342639152,-500.0,0.00021916,2]
[349638201,1737342639161,-500.0,0.00021916,2]
[349638203,1737342639171,-500.0,0.00021916,2]
[349638205,1737342639180,-500.0,0.00021916,2]
[349638207,1737342639190,-500.0,0.00021916,2]
[349638209,1737342639200,-500.0,0.00021916,2]
[349638212,1737342639214,-500.0,0.00021916,2]
[349638214,1737342639224,-500.0,0.00021916,2]
[349638216,1737342639234,-500.0,0.00021916,2]
[349638218,1737342639244,-500.0,0.00021916,2]
[349638220,1737342639253,-500.0,0.00021916,2]
[349638222,1737342639263,-500.0,0.00021916,2]
[349638224,1737342639272,-500.0,0.00021916,2]
[349638226,1737342639282,-500.0,0.00021916,2]
[349638228,1737342639291,-500.0,0.00021916,2]
[349638230,1737342639301,-500.0,0.00021916,2]
[349638232,1737342639311,-500.0,0.00021916,2]
[349638234,1737342639320,-500.0,0.00021916,2]
[349638236,1737342639330,-500.0,0.00021916,7]
[349638238,1737342639339,-1862.45715601,0.00021917,5]
[349638592,1737342642912,-452.94223795,0.000219,3]
[349638595,1737342642925,-1047.71961501,0.000219,3]
[349638597,1737342642935,-506.98592664,0.00021917,5]
[349638600,1737342642962,-12244.8,0.00021917,5]
[349638603,1737342642976,-491.63898947,0.00021917,5]
[349638613,1737342643069,-1716.41399787,0.00021917,5]
[349638615,1737342643079,-614.72836883,0.00021917,5]
[349638902,1737342645985,-591.5754608,0.00021917,5]
[349638905,1737342645996,-513.59730773,0.00021917,3]
[349638907,1737342646006,-501.241854,0.00021917,3]
[349638909,1737342646016,-511.51325291,0.00021917,3]
[349638911,1737342646026,-207.51679606,0.00021917,2]
[349639131,1737342764521,206.12886652,0.00019817,2]
[349639132,1737343301831,180.0,0.000198,2]
[349639134,1737343488135,1902.72572948,0.00024,120]
[349639143,1737343680077,2802.40649252,0.00016,2]
[349639146,1737343699614,405.11083277,0.000188,2]
[349639151,1737343726924,1130.53593065,0.00019,2]
[349639165,1737343832223,-7843.740559,0.00020912,2]
[349639166,1737343832234,-300.0,0.00020999,2]
[349639167,1737343832243,-9222.77210008,0.00021,5]
[349639168,1737343832253,-10095.33109066,0.00021559,2]
[349639169,1737343832263,-177.306,0.00021816,2]
[349639170,1737343832273,-508.98546249,0.00021816,7]
[349639172,1737343832282,-304.45559693,0.00021817,2]
[349639173,1737343832292,-321.22954874,0.00021817,7]
[349639174,1737343832301,-24520.18187293,0.00021817,3]
[349639176,1737343832311,-160.0,0.00021817,3]
[349639178,1737343832321,-572.41038576,0.00021817,2]
[349639180,1737343832332,-10095.33109067,0.0002183,2]
[349639182,1737343832342,-572.41038572,0.00021856,2]
[349639185,1737343832353,-4321.32337456,0.0002189,3]
[349639187,1737343832362,-572.41038572,0.00021895,2]
[349639189,1737343832372,-240.0,0.000219,2]
[349639190,1737343832381,-210.0,0.000219,4]
[349639193,1737343832391,-353.7597518,0.000219,2]
[349639195,1737343832400,-353.7597518,0.000219,2]
[349639197,1737343832410,-353.7597518,0.000219,2]
[349639199,1737343832419,-353.7597518,0.000219,2]
[349639201,1737343832428,-1450.63979104,0.000219,3]
[349639203,1737343832437,-709.2791611,0.000219,2]
[349639205,1737343832447,-158.59,0.00021916,2]
[349639207,1737343832460,-187.72770538,0.00021916,2]
[349639209,1737343832470,-500.0,0.00021916,2]
[349639211,1737343832480,-500.0,0.00021916,2]
[349639213,1737343832489,-500.0,0.00021916,2]
[349639215,1737343832499,-303.93375177,0.00021916,2]
[349639217,1737343832507,-500.0,0.00021916,2]
[349639219,1737343832517,-573.48711508,0.00021916,2]
[349639221,1737343832526,-500.0,0.00021916,2]
[349639223,1737343832536,-182.13457975,0.00021916,2]
[349639225,1737343832545,-176.01189764,0.00021916,2]
[349639227,1737343832555,-500.0,0.00021916,2]
[349639229,1737343832565,-500.0,0.00021916,2]
[349639231,1737343832574,-160.0,0.00021916,2]
[349639233,1737343832583,-160.0,0.00021916,2]
[349639235,1737343832592,-8411.148035,0.00021917,5]
[349639237,1737343832601,-504.46957153,0.00021917,3]
[349639240,1737343832612,-500.99878435,0.00021917,3]
[349639242,1737343832622,-501.25771022,0.00021917,3]
[349639244,1737343832632,-501.85103662,0.00021917,3]
[349639245,1737343832642,-500.72761103,0.00021917,3]
[349639247,1737343832651,-500.0,0.00021917,3]
[349639250,1737343832661,-501.93006867,0.00021917,3]
[349639252,1737343832671,-500.69650848,0.00021917,3]
[349639254,1737343832681,-500.0,0.00021917,3]
[349639256,1737343832694,-500.0,0.00021917,3]
[349639257,1737343832706,-501.41019913,0.00021917,3]
[349639259,1737343832716,-500.63655127,0.00021917,3]
[349639260,1737343832727,-500.94915333,0.00021917,3]
[349639262,1737343832736,-501.88394205,0.00021917,3]
[349639264,1737343832746,-500.0,0.00021917,3]
[349639266,1737343832757,-501.5505768,0.00021917,3]
[349639268,1737343832768,-500.96448819,0.00021917,3]
[349639270,1737343832778,-508.90071378,0.00021917,3]
[349639287,1737343832940,-631.84753078,0.00021917,3]
[349639290,1737343832954,-500.99795848,0.00021917,3]
[349639292,1737343832964,-503.08782382,0.00021917,3]
[349639293,1737343832974,-504.63209016,0.00021917,3]
[349639295,1737343832983,-151.0,0.00021917,2]
[349639297,1737343832994,-151.0,0.00021917,2]
[349639299,1737343833004,-501.16404057,0.00021917,3]
[349639302,1737343833015,-511.02224533,0.00021917,3]
[349639303,1737343833026,-501.36536613,0.00021917,3]
[349639306,1737343833037,-412.84799999,0.00021917,3]
[349639308,1737343833048,-151.0,0.00021917,2]
[349639309,1737343833059,-151.0,0.00021917,2]
[349639312,1737343833069,-152.946184,0.00021917,2]
[349639313,1737343833079,-501.72195044,0.00021917,3]
[349639315,1737343833089,-595.20157462,0.00021917,3]
[349639317,1737343833099,-500.9731144,0.00021917,3]
[349639319,1737343833109,-303.08237478,0.00021917,3]
[349639321,1737343833119,-500.0,0.00021917,3]
[349639323,1737343833129,-500.85046033,0.00021917,3]
[349639325,1737343833138,-501.45058325,0.00021917,3]
[349639327,1737343833148,-500.82914289,0.00021917,3]
[349639329,1737343833158,-500.95691503,0.00021917,14]
[349639331,1737343833167,-502.93378796,0.00021917,3]
[349639333,1737343833177,-502.01596653,0.00021917,3]
[349639335,1737343833186,-500.56458232,0.00021917,3]
[349639337,1737343833197,-504.75809757,0.00021917,3]
[349639339,1737343833210,-500.88554192,0.00021917,3]
[349639341,1737343833220,-501.46230966,0.00021917,3]
[349639342,1737343833230,-500.69424839,0.00021917,3]
[349639344,1737343833240,-500.51269468,0.00021917,3]
[349639346,1737343833250,-502.26364592,0.00021917,3]
[349639348,1737343833260,-502.31731089,0.00021917,3]
[349639350,1737343833270,-501.03589156,0.00021917,3]
[349639352,1737343833280,-501.60596443,0.00021917,3]
[349639354,1737343833290,-507.40978121,0.00021917,3]
[349639356,1737343833300,-501.11477697,0.00021917,3]
[349639358,1737343833309,-504.01751265,0.00021917,3]
[349639360,1737343833320,-502.98495385,0.00021917,3]
[349639362,1737343833329,-502.6113531,0.00021917,3]
[349639364,1737343833339,-504.98202331,0.00021917,3]
[349639366,1737343833349,-505.11168715,0.00021917,3]
[349639368,1737343833358,-500.0,0.00021917,3]
[349639370,1737343833368,-501.64603034,0.00021917,3]
[349639372,1737343833378,-500.60823606,0.00021917,3]
[349639374,1737343833388,-502.38263954,0.00021917,3]
[349639376,1737343833398,-506.87428357,0.00021917,3]
[349639378,1737343833408,-502.72686593,0.00021917,3]
[349639380,1737343833418,-508.02441575,0.00021917,3]
[349639382,1737343833427,-510.01726541,0.00021917,3]
[349639383,1737343833436,-500.85988492,0.00021917,3]
[349639385,1737343833446,-504.99329614,0.00021917,3]
[349639387,1737343833458,-525.49977192,0.00021917,3]
[349639389,1737343833467,-506.62378896,0.00021917,3]
[349639391,1737343833477,-500.0,0.00021917,3]
[349639393,1737343833487,-501.41184393,0.00021917,3]
[349639395,1737343833497,-501.41104056,0.00021917,3]
[349639397,1737343833507,-502.91406816,0.00021917,3]
[349639399,1737343833516,-502.49941281,0.00021917,3]
[349639401,1737343833526,-500.73855627,0.00021917,3]
[349639403,1737343833535,-500.0,0.00021917,3]
[349639405,1737343833544,-503.62562826,0.00021917,3]
[349639407,1737343833554,-498.25754236,0.00021917,3]
[349639409,1737343833564,-500.0,0.00021917,3]
[349639411,1737343833574,-501.25079441,0.00021917,3]
[349639413,1737343833583,-524.31500748,0.00021917,3]
[349639415,1737343833593,-517.01567619,0.00021917,3]
[349639417,1737343833604,-505.88659106,0.00021917,3]
[349639419,1737343833613,-502.52243446,0.00021917,3]
[349639421,1737343833623,-501.59816511,0.00021917,3]
[349639423,1737343833632,-201.53773015,0.00021917,3]
[349639425,1737343833642,-505.72216763,0.00021917,3]
[349639427,1737343833651,-502.86130764,0.00021917,3]
[349639429,1737343833660,-500.72115019,0.00021917,3]
[349639431,1737343833670,-500.67172478,0.00021917,3]
[349639433,1737343833679,-502.17241165,0.00021917,3]
[349639435,1737343833693,-500.33161249,0.00021917,3]
[349639436,1737343833703,-500.0,0.00021917,3]
[349639438,1737343833712,-562.92265114,0.00021917,3]
[349639440,1737343833722,-502.76265964,0.00021917,3]
[349639442,1737343833733,-151.0,0.00021917,2]
[349639444,1737343833742,-151.0,0.00021917,2]
[349639446,1737343833751,-151.0,0.00021917,2]
[349639448,1737343833761,-259.68538367,0.00021917,2]
[349639450,1737343833774,-501.22825629,0.00021917,3]
[349639452,1737343833784,-501.24363278,0.00021917,3]
[349639454,1737343833794,-505.20530937,0.00021917,3]
[349639456,1737343833804,-507.29754884,0.00021917,3]
[349639458,1737343833814,-506.86300288,0.00021917,3]
[349639460,1737343833823,-526.0275591,0.00021917,3]
[349639462,1737343833833,-500.55553464,0.00021917,3]
[349639464,1737343833842,-500.54249007,0.00021917,3]
[349639466,1737343833852,-500.53743057,0.00021917,3]
[349639468,1737343833862,-502.57949401,0.00021917,3]
[349639470,1737343833871,-500.92833251,0.00021917,3]
[349639471,1737343833881,-501.61409514,0.00021917,3]
[349639473,1737343833891,-501.54164113,0.00021917,3]
[349639475,1737343833901,-500.68791341,0.00021917,3]
[349639477,1737343833911,-500.0,0.00021917,3]
[349639479,1737343833921,-502.01892886,0.00021917,3]
[349639481,1737343833930,-500.88702,0.00021917,3]
[349639483,1737343833940,-501.01662279,0.00021917,3]
[349639485,1737343833949,-223.9590714,0.00021917,3]
[349639487,1737343833960,-501.11706422,0.00021917,3]
[349639489,1737343833970,-503.5865424,0.00021917,3]
[349639491,1737343833980,-500.92954392,0.00021917,3]
[349639493,1737343833990,-500.0,0.00021917,3]
[349639495,1737343834000,-505.10496629,0.00021917,3]
[349639497,1737343834010,-501.23217952,0.00021917,3]
[349639499,1737343834020,-501.75454165,0.00021917,3]
[349639501,1737343834029,-502.98022677,0.00021917,3]
[349639503,1737343834039,-502.13570449,0.00021917,3]
[349639505,1737343834049,-504.22010757,0.00021917,3]
[349639507,1737343834059,-500.0,0.00021917,3]
[349639509,1737343834069,-501.84326002,0.00021917,3]
[349639511,1737343834079,-503.32194874,0.00021917,3]
[349639513,1737343834088,-383.25467472,0.00021917,3]
[349639515,1737343834097,-500.0,0.00021917,2]
[349639517,1737343834107,-500.0,0.00021917,3]
[349639519,1737343834117,-500.85196333,0.00021917,3]
[349639521,1737343834127,-504.37088024,0.00021917,3]
[349639523,1737343834136,-504.20405113,0.00021917,3]
[349639525,1737343834147,-505.03703532,0.00021917,3]
[349639527,1737343834156,-501.70284479,0.00021917,3]
[349639529,1737343834165,-500.60485919,0.00021917,3]
[349639531,1737343834175,-502.63594559,0.00021917,3]
[349639533,1737343834185,-301.90435702,0.00021917,3]
[349639535,1737343834194,-501.75203457,0.00021917,3]
[349639537,1737343834204,-312.03546813,0.00021917,3]
[349639539,1737343834213,-501.60421726,0.00021917,3]
[349639540,1737343834223,-502.87070177,0.00021917,3]
[349639542,1737343834232,-506.3224516,0.00021917,3]
[349639544,1737343834241,-501.09259844,0.00021917,3]
[349639546,1737343834251,-500.61208174,0.00021917,3]
[349639548,1737343834260,-501.74870198,0.00021917,3]
[349639550,1737343834270,-151.0,0.00021917,2]
[349639552,1737343834279,-153.57301,0.00021917,2]
[349639554,1737343834290,-501.89150669,0.00021917,3]
[349639556,1737343834299,-502.97253892,0.00021917,3]
[349639557,1737343834307,-502.05219178,0.00021917,3]
[349639559,1737343834317,-501.01402125,0.00021917,3]
[349639561,1737343834327,-500.0,0.00021917,3]
[349639563,1737343834336,-170.91334746,0.00021917,3]
[349639565,1737343834346,-500.0,0.00021917,3]
[349639567,1737343834355,-500.0,0.00021917,3]
[349639569,1737343834364,-500.0,0.00021917,3]
[349639571,1737343834374,-151.0,0.00021917,2]
[349639573,1737343834384,-151.0,0.00021917,2]
[349639575,1737343834394,-151.0,0.00021917,2]
[349639577,1737343834403,-500.0,0.00021917,3]
[349639579,1737343834413,-500.0,0.00021917,3]
[349639581,1737343834423,-500.0,0.00021917,3]
[349639583,1737343834432,-209.71803873,0.00021917,3]
[349639586,1737343834457,-290.28196127,0.00021917,3]
[349639588,1737343834467,-151.0,0.00021917,2]
[349639590,1737343834478,-151.0,0.00021917,2]
[349639592,1737343834488,-151.0,0.00021917,2]
[349639594,1737343834498,-151.0,0.00021917,2]
[349639596,1737343834508,-151.0,0.00021917,2]
[349639598,1737343834517,-292.668516,0.00021917,2]
[349639600,1737343834527,-500.0,0.00021917,3]
[349639602,1737343834537,-500.0,0.00021917,3]
[349639604,1737343834547,-537.32167428,0.00021917,3]
[349639606,1737343834556,-255.48365269,0.00021917,3]
[349639608,1737343834566,-500.0,0.00021917,3]
[349639610,1737343834576,-507.51001691,0.00021917,3]
[349639612,1737343834586,-500.0,0.00021917,3]
[349639614,1737343834596,-151.0,0.00021917,2]
[349639616,1737343834605,-151.0,0.00021917,2]
[349639618,1737343834615,-153.994862,0.00021917,2]
[349639620,1737343834625,-507.79871921,0.00021917,3]
[349639622,1737343834634,-500.0,0.00021917,3]
[349639624,1737343834644,-151.0,0.00021917,2]
[349639626,1737343834653,-151.520753,0.00021917,2]
[349639628,1737343834663,-131.49941424,0.00021917,3]
[349639721,1737343838217,-603.15191481,0.00021917,5]
[349639723,1737343838227,-371.29068108,0.00021917,3]
[349639725,1737343838237,-505.42677801,0.00021917,3]
[349639727,1737343838246,-495.28979979,0.00021917,3]
[349639729,1737343838256,-500.0,0.00021917,3]
[349639731,1737343838267,-151.0,0.00021917,2]
[349639733,1737343838276,-151.0,0.00021917,2]
[349639735,1737343838287,-151.0,0.00021917,2]
[349639737,1737343838296,-151.0,0.00021917,2]
[349639738,1737343838306,-500.0,0.00021917,3]
[349639740,1737343838315,-500.0,0.00021917,3]
[349639742,1737343838324,-500.0,0.00021917,3]
[349639745,1737343838334,-500.0,0.00021917,3]
[349639748,1737343838344,-211.02413477,0.00021917,3]
[349639753,1737343838356,-288.97586523,0.00021917,3]
[349639756,1737343838366,-500.0,0.00021917,3]
[349639759,1737343838375,-500.0,0.00021917,3]
[349639761,1737343838385,-500.0,0.00021917,3]
[349639764,1737343838403,-515.02008611,0.00021917,3]
[349639766,1737343838417,-379.36966603,0.00021917,3]
[349639768,1737343838427,-500.0,0.00021917,3]
[349639771,1737343838438,-151.0,0.00021917,2]
[349639773,1737343838448,-151.0,0.00021917,2]
[349639775,1737343838461,-151.0,0.00021917,2]
[349639777,1737343838471,-151.0,0.00021917,2]
[349639779,1737343838480,-151.0,0.00021917,2]
[349639781,1737343838490,-261.873255,0.00021917,2]
[349639783,1737343838500,-514.37179495,0.00021917,3]
[349639785,1737343838511,-508.43005437,0.00021917,3]
[349639787,1737343838521,-504.62825859,0.00021917,3]
[349639789,1737343838531,-492.38960336,0.00021917,3]
[349639791,1737343838541,-508.58993395,0.00021917,3]
[349639793,1737343838551,-506.93606848,0.00021917,3]
[349639795,1737343838560,-511.59294578,0.00021917,3]
[349639797,1737343838570,-503.0712292,0.00021917,3]
[349639799,1737343838580,-150.97027884,0.00021917,3]
[349639801,1737343838590,-503.12352873,0.00021917,3]
[349639803,1737343838600,-500.0,0.00021917,3]
[349639806,1737343838610,-500.0,0.00021917,3]
[349639808,1737343838620,-260.35929698,0.00021917,3]
[349639943,1737343840293,-250.08304634,0.00021917,3]
[349639944,1737343840302,-500.0,0.00021917,3]
[349639945,1737343840312,-507.52987909,0.00021917,3]
[349639946,1737343840321,-505.60942687,0.00021917,3]
[349639947,1737343840330,-506.92928592,0.00021917,3]
[349639948,1737343840340,-503.78547227,0.00021917,3]
[349639949,1737343840349,-506.06385706,0.00021917,2]
[349639950,1737343840358,-151.0,0.00021917,2]
[349639951,1737343840367,-151.0,0.00021917,2]
[349639953,1737343840377,-152.108073,0.00021917,2]
[349639955,1737343840386,-500.0,0.00021917,3]
[349639957,1737343840395,-507.81157003,0.00021917,3]
[349639959,1737343840405,-504.72206179,0.00021917,3]
[349639961,1737343840414,-458.84464359,0.00021917,3]
[349639963,1737343840423,-151.0,0.00021917,2]
[349639965,1737343840433,-151.0,0.00021917,2]
[349639968,1737343840450,-151.0,0.00021917,2]
[349639970,1737343840468,-151.0,0.00021917,2]
[349639973,1737343840485,-154.539352,0.00021917,2]
[349639976,1737343840500,-695.441392,0.00021917,2]
[349639978,1737343840512,-695.441392,0.00021917,2]
[349639980,1737343840524,-695.441392,0.00021917,2]
[349639983,1737343840539,-500.0,0.00021917,3]
[349639985,1737343840552,-151.0,0.00021917,2]
[349639988,1737343840568,-695.441392,0.00021917,2]
[349639991,1737343840586,-151.0,0.00021917,2]
[349639993,1737343840600,-695.441392,0.00021917,2]
[349639995,1737343840613,-151.0,0.00021917,2]
[349639998,1737343840628,-695.441392,0.00021917,2]
[349640000,1737343840643,-695.441392,0.00021917,2]
[349640003,1737343840657,-151.0,0.00021917,2]
[349640005,1737343840670,-695.441392,0.00021917,2]
[349640008,1737343840684,-151.0,0.00021917,2]
[349640010,1737343840699,-151.0,0.00021917,2]
[349640013,1737343840714,-151.0,0.00021917,2]
[349640015,1737343840728,-695.441392,0.00021917,2]
[349640017,1737343840742,-151.0,0.00021917,2]
[349640020,1737343840755,-151.0,0.00021917,2]
[349640022,1737343840766,-695.441392,0.00021917,2]
[349640024,1737343840778,-151.0,0.00021917,2]
[349640026,1737343840791,-695.441392,0.00021917,2]
[349640029,1737343840803,-151.0,0.00021917,2]
[349640031,1737343840817,-695.441392,0.00021917,2]
[349640034,1737343840832,-211.338786,0.00021917,2]
[349640036,1737343840846,-695.441392,0.00021917,2]
[349640039,1737343840859,-695.441392,0.00021917,2]
[349640041,1737343840874,-695.441392,0.00021917,2]
[349640044,1737343840888,-500.0,0.00021917,3]
[349640046,1737343840903,-695.441392,0.00021917,2]
[349640048,1737343840916,-695.441392,0.00021917,2]
[349640051,1737343840927,-695.441392,0.00021917,2]
[349640053,1737343840938,-695.441392,0.00021917,2]
[349640055,1737343840949,-695.441384,0.00021917,2]
[349640057,1737343840965,-500.0,0.00021917,3]
[349640060,1737343840980,-500.0,0.00021917,3]
[349640061,1737343840995,-500.0,0.00021917,3]
[349640064,1737343841009,-151.0,0.00021917,2]
[349640066,1737343841020,-151.0,0.00021917,2]
[349640068,1737343841033,-152.974254,0.00021917,2]
[349640070,1737343841045,-151.0,0.00021917,2]
[349640073,1737343841057,-151.393408,0.00021917,2]
[349640075,1737343841069,-151.0,0.00021917,2]
[349640077,1737343841083,-151.0,0.00021917,2]
[349640080,1737343841094,-151.0,0.00021917,2]
[349640082,1737343841107,-151.0,0.00021917,2]
[349640084,1737343841119,-151.0,0.00021917,2]
[349640086,1737343841131,-504.26772227,0.00021917,3]
[349640089,1737343841143,-151.0,0.00021917,2]
[349640091,1737343841158,-151.0,0.00021917,2]
[349640094,1737343841170,-151.0,0.00021917,2]
[349640096,1737343841183,-151.0,0.00021917,2]
[349640098,1737343841195,-221.925419,0.00021917,2]